{"text_format":"3","workbook":"xlsx","n_sheets":16,"sheets":["История ","География, экономика","Физика","Химия, биология, экология","Созидательный труд ","Загадки английского","Русский язык ","Математика","Татарский ","Юный Окружающий мир","Юный История","Юный Физика, математика","Юный русский язык  ","Юный Татарский ","Юный","Учителя"],"not_rendered":{"defined_names":2,"comments":1},"read":"whole","date_system":"1900"}

{"sheet":"История ","index":0,"n_rows":101,"n_cols":11,"rows_kept":101}
["№","Наименование\nОУ\n","Направление конкурсной работы","Название работы","Предмет ","ФИО автора работы","Класс ","Руководитель ","работа","оплата"]
[1,"МБОУ гимназия \"Эврика\" ","история и краеведение","Мой  прадед - казак 252 Анапского резервного батальона","кубановедение","Ефименко Андрей",6,"Филимонова Н.В."]
[2,"МБОУ \"Новокинерская средняя общеобразовательная школа\" Арского муниципального района  РТ","История и краеведение ","Арча районының югалган авыллары","география, история","Хамидуллина Алсина  Рузалевна",10,"Учитель географии   Илмира Музагитвна Ахметова;  Учитель татарского языка и литературы   Раиля Камилевна Гарипова"]
[3,"МБОУ \"Усалинская СОШ\" Мамадышского района РТ","история, краеведение.","Казан ханлыгы шаһите.","история,   краеведение.","Гарапов Миннефатыйх Айратович.",10,"Консантинова                            Лидия Семеновна, учитель истории"]
[4,"МБОУ «Мамаширская средняя школа» Кукморского муниципального района РТ","краеведение ","Хэтер-Книга Памяти","краеведение","Насибуллин Динар Ринатович",11,"Насибуллина Танзиля Дамировна, учитель"]
[5,"Муниципальное  общеобразовательное  учреждение   Новохоперского  муниципального  района  Воронежской области «Новохоперская гимназия №1»","История и краеведение, жизнь и научная деятельность К. А. Валиева","Летопись поселка Централь – история и современность","Краеведение","Матвиенко Татьяна Александровна",11,"Шаповалов Александр Владимирович, учитель истории и обществознания"]
[6,"МБОУ \"Соснинская ООШ\"","История и краеведение","Жиде буын тарихы","Начальный класс и группа продленного дня","Хайруллина Азалия Алмазовна",7,"Исмагилова Гелюся Мухаррамовна "]
[7,"МБОУ \"СОШ №1 города Мамадыш\"","История, краеведение","Серле мәктәп","Татарская литература","Нигматуллина Гульшат Алнуровна","7Б ","Мингазова Альфия Наилевна"]
[8,"МБОУ «СОШ №112», Авиастроительного района г. Казани",null,"Один день в музее ",null,"Силахина Александра Валерьевна","7 Б ","Насыбуллина Г.Х- учитель татарского языка и литературы, руководитель музея "]
[9,"МБОУ \"Гимназия№2\" имени Баки Урманче г.Нижнекамска","история, краеведение","Блокада Ленинграда в судьбах простых людей","история","Шакирова Алсу Ракиповна",10,"Шакирова Эндже Каримовна"]
[10,"МБОУ \"Зюринская СОШ\" Мамадышского муниципального района РТ","История и краеведение, жизнь и научная деятельность К. А. Валиева","\"Гаепсезгә гаепләнгән безнең якташ.\"","История ","Кузнецова Валерия Владимировна","9 класс, член кружка \"Юный краевед\"","Кузнецов Владимир Николаевич учитель истории и обществознания, педагог дополнительного образования. "]
[11,"МКОУ СОШ с.Старый Ирюк Малмыжского района Кировской области ","История и краеведение","Шадырларда ни булган","Краеведение","Набиуллина Алия Фаязовна",9,"Салахиев Вагиз Мударисович,        учитель истории",null,null,"от"]
[12,"Нижнеошминская СОШ","История и краеведение","Моя малая Родина",null,"Ахметзянова Фарида Илфатовна",9,"Салахутдинова Алсу Хамитовна"]
[13,"МБОУ \"Малосуньская ООШ\"","История и краеведение, жизнь и научная деятельность К.А.Валиева.","Авылыбыз мирасы","История","Мухаметзянов Тимерхан Рустемович","9 класс","Мухаметзянова Лилия Саматовна, учитель истории и обществознания, I категории"]
[14,"МБОУ «Лицей №2 им. ак. К.А. Валиева г. Мамадыш»",null,"Тюрское право","История","Демиева Миляуша Ильдусовна Мамадалиева Динара Шухратовна",10,"Шевяхова Л В"]
[15,"МБОУ «Лицей №2 им. ак. К.А. Валиева г. Мамадыш»",null,"Победу одерживают не числом, а умением",null,"Гиззатуллин Алмаз",8,"Шишкина Ю. А."]
[16,"МБОУ \"СОШ №4 города Мамадыш\"",null,"Советский тыл в годы ВОВ\"",null,"Потеряхина Надежда",9,"Шишкина Т.А. Саматова А.З."]
{"$rows_empty":83}
[{"$f":"COUNT(A2:A100)","v":16}]

{"sheet":"География, экономика","index":1,"n_rows":101,"n_cols":10,"rows_kept":101}
["№","Наименование\nОУ\n","Направление конкурсной работы","Название работы","Предмет ","ФИО автора работы","Класс ","Руководитель ","работа","оплата"]
[1,"МБОУ гимназия \"Эврика\" ","география, экономика","Совершенствование законодательства РФ  в сфере обеспечения безопасности качества товаров, работ и услуг","экономика","Карасёва      Анна",11,"Филимонова Н.В."]
[2,"МБОУ гимназия \"Эврика\" ","география, экономика","Проблемы правового регулирования кредитных отношений  в РФ","экономика","Абакумов Артур",11,"Филимонова Н.В."]
[3,"МБОУ гимназия \"Эврика\" ","география, экономика","Проблемы и перспективы развития законодательства  в сфере оказания туристических услуг","экономика","Нестеров Роман",11,"Филимонова Н.В."]
[4,"МБОУ гимназия \"Эврика\" ","география, экономика","О некоторых мерах по совершенствованию законодательства о рекламной деятельности в РФ","экономика","Сидоров Тимур",11,"Филимонова Н.В."]
[5,"МБОУ гимназия \"Эврика\" ","география, экономика","Правовое регулирование отношений по возмездному оказанию рекламных услуг","экономика","Пархоменко Анна",11,"Филимонова Н.В."]
[6,"МБОУ гимназия \"Эврика\" ","география, экономика","О необходимости совершенствования законодательства о страховании в РФ","экономика","Бирюков  Матвей",11,"Филимонова Н.В."]
[7,"МБОУ гимназия \"Эврика\" ","география, экономика","Проблемы гражданско-правового регулирования сделок с земельными участками","экономика","Шурыгин Максим",11,"Филимонова Н.В."]
[8,"МБОУ гимназия \"Эврика\" ","география, экономика","Проблемы правового регулирования страхования гражданско-правовой ответственности","экономика","Григорье Павел",11,"Филимонова Н.В."]
[9,"МОУ \"Гимназия №20\" г. Саранска Республики Мордовия","География, экономика","География - основа многих профессий","География","Моисеев Артем Евгеньевич Подгорнов Александр Анатольевич","6В","Савина Анастасия Геннадьевна, учитель географии"]
{"$rows_empty":90}
[{"$f":"COUNT(A2:A100)","v":9}]

{"sheet":"Физика","index":2,"n_rows":101,"n_cols":10,"rows_kept":101}
["№","Наименование\nОУ\n","Направление конкурсной работы","Название работы","Предмет ","ФИО автора работы","Класс ","Руководитель ","работа","оплата"]
[1,"МБОУ \"СШ д.Починок Сутер\"","Научно-исследовательская","Влияние электромагнитного излучения на организм человека","физика","Матвеева Оксана Валерьевна",10,"Нотфуллина Венера  мухаметовна"]
[2,"Муниципальное бюджетное общеобразовательное учреждение\n«Средняя общеобразовательная школа № 3 города Мамадыш»\nМамадышского муниципального района Республики Татарстан","Номинация   «Физика, математика, химия, информатика»","«Исследование поверхностного натяжения моющих средств»\n\n","физика","Штина Полина Александровна ",7,"учитель физики \nГайфулина Ляйсана Зиннуровна\n"]
[3,"МБОУ СОШ№1","Иследовательская работа","Зависемость содержания водяных паров в воздухе от температуры","Физика","Шайхисламов Руслан  Ильдарович          Шайхутдинов Дамир ","8Б","Насибуллин Ильнур Магсумович"]
[4,"МБОУ \"Мамаширская средняя школа\" Кукморского района РТ","физика,математика,химия,информатика","Аппарат \"Сладкая вата\"","физика","Мутигуллин Раиф Дамирович",10,"Нигматуллина Альфия Миннихарисовна "]
[null,"Лицей №2 Мамадыш",null,"Машина",null,"Хадиуллин Нур",11,"Шакирова Л Ф"]
[null,"Лицей №2 Мамадыш",null,"освещение дорог",null,"Гимранов Ильфат Шайхиев Айрат",9,"Шакирова Л Ф"]
{"$rows_empty":93}
[{"$f":"COUNT(A2:A100)","v":4}]

{"sheet":"Химия, биология, экология","index":3,"n_rows":101,"n_cols":10,"rows_kept":101}
["№","Наименование\nОУ\n","Направление конкурсной работы","Название работы","Предмет ","ФИО автора работы","Класс ","Руководитель ","работа","оплата"]
[1,"МБОУ гимназия \"Эврика\" (муниципальное бюджетное образовательное учреждение гимназия \"Эврика\"","химия, биология, экология","Исследование формирования   рельефа земной поверхности под влиянием воды и течения рек","география","Филимонов Никита",8,"Филимонова Н.В."]
[2,"МБОУ \"Казанбашская ООШ\" Арского муниципального района РТ","\"Окружающий мир, здоровье, экология\"","Влияние йода на организм человека","биология","Мухаметханова Алия Ильфиратовна",7,"Латыпова Райля Галимзяновна"]
[3,"МОУ \" Новохоперская гимназия № 1\" г Новохоперс, Воронежской области","экология","Оценка состояния воздуха в окрестгностях города Новохоперска","география","Коростелёва Яна Вячеславовна","9 класс","Греченева Зинаида Николаевна, учитель географии"]
[4,"МБОУ \"СОШ №2\"  г. Нижнекамска","Химия, биология, экология","Влияние синтетических моющих средств на биологические объекты","биология","Косовских Полина",10,"Шадренкова О.В. учитель  бологии"]
[5,"МБОУ \"СОШ №2\"  г. Нижнекамска","Химия, биология, экология","Влияние качества хлеба на здоровье человека","биология","Наумова Лиана",10,"Тищенко О.В. учитель  биологии и химии"]
[6,"МБОУ \"Сокольская СОШ\"","Биология, экология","Комнатные растения в жизни человека","биология","Кукрак Ольга Ивановна",7,"Хабибуллина Лилия Насибулловна, учитель биологии и химии"]
[7,"МБОУ \"Мало-Лызинская СОШ\"","Экология","Вода в моем селе","ОБЖ","Петрова Эвелина Эдуардовна",6,"Исмагилов Марат Фаритович преподаватель организатор ОБЖ"]
[8,"Муниципальное  бюджетное \nобщеобразовательное учреждение «Зюринская средняя  общеобразовательная школа»","Химия, биология, экология","Нинди сөт файдалырак: кәҗә сөтеме, әллә сыер сөтеме?","биология","Гатина Энже Низамиев Рамазан","5 класс, 4 класс","Герасимова Галина Петровна, Муфахарова Лилия Василовна"]
[9,"Муниципальное  бюджетное \nобщеобразовательное учреждение «Зюринская средняя  общеобразовательная школа»","Химия, биология, экология","Тәмәке төтененең зарары","Биология","Сергееев Пётр Анатольевич","7 класс","Герасимова Галина Петровна"]
[10,"МБОУ «Среднекирменская СОШ»","«Окружающий мир, здоровье, экология».","«Канатлы дусларыбыз турында кайгыртырга бурычлы без»","Биология","Хасанов Рамазан Булатович",5,"Хасанова Гульназ Накиповна,учитель начальных классов"]
[11,"МБОУ «СОШ №112», Авиастроительного района г. Казани",null,"Душистый подарок любимой маме ","(химия, биология, экология)","Силахина Александра Валерьевна","7 Б ","Миргалеева Н.В., учитель химии и географии высшей квалификационной категории "]
[12,"МБОУ «СОШ №112», Авиастроительного района г. Казани",null,"«Волшебные» свойства собачьей шерсти: правда или миф? ","(химия, биология, экология)","Силахина Александра Валерьевна","7 Б ","Миргалеева Н.В., учитель химии и географии высшей квалификационной категории "]
[13,"МБОУ \"Чарлинская средняя школа\" Кукморского муниципального района РТ","биология,химия,экология","Домашняя лаборатория или как распознать фальсифицированный мед .","биология","Бочкарев Никита Сергеевич",5,"Бочкарева Светлана Михайловна-учитель биологии высшей квалификационной категории МБОУ \"Чарлинская средняя школа\" Кукморского муниципального района РТ"]
[14,"МБОУ \"Нижнеошминская СОШ\"",null,"Чипсы опасня для здоровья","биология","Бобоёров Малик Олимович",8,"Камалова М И"]
[15,"МБОУ \"Малосуньская ООШ\"","Химия, биология, экология","Техногенная рана Земли","Экология","Шарифуллина Сюмбеля Ильшатовна","8 класс","Мухаметзянов Рустем Фазылзянович, учитель биологии и химии, I кв. категория"]
[16,"Лицей 2 Мамадыш",null,"« Условия возникновения плесени»",null,"Мисбахова Диляра Ленаровна ",null,"Сибгаева А Х"]
[17,"Лицей 2 Мамадыш",null,"Влияние биологических ритмов на умственную работоспособность школьников",null,"Гуня Ирина Игороевна",null,"Гуня О.А."]
[18,"Муниципальное бюджетное общеобразовательное учреждение \"Красногорская СОШ\"","экология","\"Coca-Cola\"-польза или вред?","биология","Бабикова Анна","9 класс","Нурмиева Галина Александровна"]
{"$rows_empty":81}
[{"$f":"COUNT(A2:A100)","v":18}]

{"sheet":"Созидательный труд ","index":4,"n_rows":101,"n_cols":10,"rows_kept":101}
["№","Наименование\nОУ\n","Направление конкурсной работы","Название работы","Предмет ","ФИО автора работы","Класс ","Руководитель ","работа","оплата"]
[1,"МБОУ \"Многопрофильный лицей им. А.М. Булатова п.г.т. Кукмор\"","Созидательный труд школьников","Национальный микс","Технология ","Галиева Алина Айратовна",10,"Галиева Наталья Александровна, учитель технологии высшей категории"]
[2,"МБОУ \"Многопрофильный лицей им. А.М. Булатова п.г.т. Кукмор\"","Созидательный труд школьников","Весенний микс","Технология ","Шакирова Камиля Илдаровна",7,"Галиева Наталья Александровна, учитель технологии высшей категории"]
[3,"Муниципальное бюджетное общеобразовательное учреждение \"Средняя общеобразовательная школа № 3 города Мамадыш\"","Созидательный труд школьников","«Мои куклы – ангелы»","Технология","Ахметзянова Элина Робертовна",7,"Чернышова Елена Александровна"]
{"$rows_empty":96}
[{"$f":"COUNT(A2:A100)","v":3}]

{"sheet":"Загадки английского","index":5,"n_rows":101,"n_cols":10,"rows_kept":101}
["№","Наименование\nОУ\n","Направление конкурсной работы","Название работы","Предмет ","ФИО автора работы","Класс ","Руководитель ","работа","оплата"]
[1,"МБОУ \"Школа №23\" Ново-Савиновского района г.Казани","Английский  язык","Подлинная ценность произведений Р.Бёрнса в переводах С.Маршака.","Английский язык","Булатова Камиля, Гадуцевич Мария","8Б","Закирова Рамиля Альфатовна"]
[2,"МБОУ \"Сокольская СОШ\"","Загадки английского языка","Интерактивное методическое пособие «Английский язык для начинающих\"","английский ","Хабибуллин Фарит Ринатович",10,"Садыкова Алсу Фаизовна, учитель английского языка"]
[3,"Лицей 2 Мамадыш",{"$nulls":3},"Шамсутдинов Камиль",11,"Залилова А Ш"]
[4,"Муниципальное бюджетное общеобразовательное учреждение \"Средняя общеобразовательная школа № 3 города Мамадыш\"","Загадки английского языка","Сходсва и различия традиционных праздников в России и Соединенных Штатов Америки (The similarities and the differences of traditinal holidays of Russia and the Unites Sates of America)","Английский язык","Васильева Эльвина Алексеевна, Хусаинова Зарина Ильдаровна",10,"Строкина Елена Григорьевна"]
[5,"МБОУ «Лицей №2 имени академика К.Валиева города Мамадыш»","Загадки английского языка","Английские заимствования в школьной среде","Английский язык","Шамсутдинова Лейля Раисовна, Васюткин Руслан Сергеевич","5 класс","Талипова Фаягуль Равилевна,"]
{"$rows_empty":94}
[{"$f":"COUNT(A2:A100)","v":5}]

{"sheet":"Русский язык ","index":6,"n_rows":101,"n_cols":11,"rows_kept":101}
["№","Наименование\nОУ\n","Направление конкурсной работы","Название работы","Предмет ","ФИО автора работы","Класс ","Руководитель ","Работа","оплата"]
[1,"МБОУ «СОШ № 6 г. Лениногорска»","русский язык и литература","Влияние литературного портрета в творчестве А.С.Пушкина на развитие русского живописного портрета в первой половине XIX века","Литература","Киселёва София Николаевна","8Б","Гаранина Мария Сергеевна учитель МХК 1 квалификационной категории МБОУ «СОШ № 6 г. Лениногорска»\n\n",null,null,"от"]
[2,"МБОУ \"Средняя общеобразовательная школа № 82 с углубленным изучением отдельных предметов\" Приволжского района г. Казани","Русский язык и литература","Физика и лирика, или образ зеркала в поэзии И. Бродского","Литература ","Ахметшин Булат Айдарович",11,"Зарубежнова Евгения Михайловна, учитель русского языка и литературы высшей квалификационной категории"]
[3,"МБОУ \"СОШ № 1 г. Мамадыш\" Мамадышского муниципального района РТ","Русский язык и литература","\"Числовая символика в романе Ф.М.Достоевского \"Преступление и наказание\"","Литература","Ксенофонтова Юлия Евгеньевна",10,"Сафуанова Ильнара Нурмухаметовна"]
[4,"МБОУ «Кутемелинская ООШ» Сармановского района РТ","Русский язык и литература","«Памятники  героям русской и татарской литературы»","Литература","Хамидуллина Альбина Фанисовна",7,"Ахметаева Римма Григорьевна, учитель русского языка и литературы"]
[5,"МБОУ \"Арская средняя общеобразовательная школа №7\"","Русский язык и литература","\"Домашние животные в фразеологизмах\"","Русский язык","Загидуллина Лия Рустамовна",6,"Загидуллина Гульшат Ринатовна, учитель русского языка и литературы"]
[6,"МБОУ «Лицей №2 им. ак. К.А. Валиева г. Мамадыш»",null,"Мир колыбельной песни",null,"Бабаниязова Камилла",5,"Гурьянова Р Ф"]
[7,"МБОУ «Лицей №2 им. ак. К.А. Валиева г. Мамадыш»",null,"Художественные приемы и особенности романов Бориса Акунина",null,"Юсупова Алина",11,"Муртазина Ч.Р"]
{"$rows_empty":92}
[{"$f":"COUNT(A2:A100)","v":7}]

{"sheet":"Математика","index":7,"n_rows":101,"n_cols":10,"rows_kept":101}
["№","Наименование\nОУ\n","Направление конкурсной работы","Название работы","Предмет ","ФИО автора работы","Класс ","Руководитель ","работа","оплата"]
[1,"МБОУ \"СОШ № 2\", г. Нижнекамск","математика","Тайны листа Мёбиуса","математика","Климина Анастасия Ильинична","7А","Тябина Елена Николаевна"]
[2,"МАОУ лицей № 48 имени Александра Васильевича Суворова город  Краснодар","Математика","Математика. Альтернативные источники получения знания","Физика, математика, информатика","Скорикова Эвелина Юрьевна",5,"Махновская Татьяна Евгеньевна"]
[3,"Муниципальное бюджетное общеобразовательное учреждение городского округа Тольятти «Гимназия № 77»","Математика","Некоторые обобщения теоремы Пифагора","Математика","Королев Степан Александрович ",9,"Молоткова Любовь Федоровна, учитель математики"]
[4,"Муниципальное бюджетное общеобразовательное учреждение городского округа Тольятти «Гимназия № 77»","Математика","Аналогия – обильный источник новых открытий в курсе геометрии","Математика","Карев Михаил Сергеевич",9,"Шишканова Ирина Дмитриевна, учитель математики"]
[5,"МБОУ\"Сокольская СОШ\"","Математика","Оптимизация и ускорение работы компьютера","Информатика","Хохлов Анатолий Сергеевич",10,"Хохлов Сергей Георгиевич, учитель математики и информатики"]
[6,"МБОУ «СОШ №4 г. Мамадыш»","Исследовательская работы","Проценты. Вред или польза?","Математика","Клинова Ангелина Витальевна",7,"Галочкина Гульназ Мирзаяновна учитель математики"]
[7,"МБОУ \"СОШ №8\" Елабужского муниципального района РТ","физика, математика, химия, информатика","Решение банковских задач  в теории и в жизни","математика","Бакуев Владислав Владимирович",11,"Герасимова Любовь Николаевна- учитель математики"]
[8,"МБОУ \"Средняя общеобразовательная школа № 8\" ЕМР РТ","секция № 3 \"Физика, математика, информатика, химия\"","Этот удивительный центр тяжести","физика и математика","Едоменко Данила Андреевич       Уткин Илья Николаевич",9,"Фунт Ирина Петровна           учитель физики                                          Шурыгина Ирина Владимировна учитель математики"]
[9,"МБОУ \"Средняя общеобразовательная школа №8\" Елабужского муниципального района","физика, математика, химия, информатика","От арифметики до алгебры и не только.","математика","Сашина Элина Олеговна",10,"Исакова Сирень Хикамутдиновна"]
[10,"РТ Алькеевский МР МБОУ\"Хлебодаровская основная общеобразовательная школа\".","Физика, математика,химия,информатика.","Применение математических вычислений при решение экологических проблем нашей местности.","Математика","Сагирова Зиля Марсовна",7,"Локтева Анна Павловна - учитель математики."]
[11,"МБОУ\"Лицей №9 имени АС Пушкина ЗМР РТ\"","математика","ТЕХНОЛОГИЧЕСКИЕ ПРИЕМЫ ПРИ РЕШЕНИИ ЗАДАЧ ПО ТЕМЕ «РАСТВОРЫ»","математика","Ахметшина Саида Галиев Рамиль",9,"Афанасьева Л Н Кушниковская Г А"]
[12,"МБОУ «Малокир-менская ООШ»","математика","Формула Пика","Математи-ка","Газизулина Алия,Закирова Алсу",5,"Зиннатуллина Зульфия Хатиповна,учитель математики, первая квалификационная категория"]
[13,"МБОУ \"Нижнеошминская СОШ\"","математика","Перепись школьного населения","математика","Садриева Ляйля Ринатовна  ",6,"Ахметзянова Эльмира Хатиповна, учитель математики"]
[14,"МБОУ «Лицей №2 имени академика К.Валиева города Мамадыш»","математика","Замечательные кривые вокруг нас",null,"Хадиуллин Нур",10,"Сайфутдинова Ф.Ф."]
{"$rows_empty":85}
[{"$f":"COUNT(A2:A100)","v":14}]

{"sheet":"Татарский ","index":8,"n_rows":101,"n_cols":11,"rows_kept":101}
["№","Наименование\nОУ\n","Направление конкурсной работы","Название работы","Предмет ","ФИО автора работы","Класс ","Руководитель ","работа","оплата"]
[1,"Муниципальное бюджетное общеобразовательное учреждение «Арская средняя общеобразовательная школа № 1 им. В.Ф.Ежкова с углубленным изучением отдельных предметов» Арского муниципального района Республики Татарстан","«Татарский язык и литература»","Мөнәҗәт әйтәм сезгә...","Татарский язык","Гатауллина Алина Ильнуровна",7,"Заляева Аниса Мухаметовна; Сафиуллина Гульназ Назиповна;учителя татарского языка и литературы"]
[2,"\"Нижнесуньская СОШ\"  Мамадышского района РТ","Татарский язык","\"Бәетләрдә язмыш мәсьәләсе\"","Татарский язык и литература","Юсупова Алсу Ильшатовна",5,"Мубаракшина Индира Саяфовна, учитель татарского языка и литературы",null,null,"от"]
[3,"МБОУ \"Верхнеякинская основная общеобразовательная школа\"","Татарская литература (татар әдәбияты)","Г. Гыйльманов иҗатында әхлак темасы","Татарская литература (татар әдәбияты)","Бурганов Алмаз Ильнурович","8 класс","Фахрутдинова Лилия Мавлеевна, учитель татарского языка и литературы МБОУ \"Верхнеякинская ООШ\""]
[4,"МБОУ \"Большешурнякская средняя школа\" ЕМР РТ","Таарский язык и литература","\"Кино   и  Тукай\". Исследовательская работа.","Татарский язык","Сабирова Зиля Маратовна",9,"Галеева Ландыш Хайдаровна, учитель татарского языка и литературы"]
[5,"МБОУ \"Яныльская средняя школа\" Кукморского муниципального района Республики Татарстан","Татарский язык и литература (перевод)","Татар теле  һәм рус паремиясендә \"Кешенең асылы, табигате\" темасын яктырткан мәкальләр","Татарский язык","Ганиева Рамзия Ранифовна",10,"Галлямова Лейсан Садыйковна, учитель татарского языка и литературы "]
[6,"МБОУ \"Верхнеошминская ООШ\"","Татарский язык и литература","Якташ язучылар иҗатында туган як темасы бирелеше","татарская литература","Низамова Камиля Зиннуровна",5,"Мухарлямова Ленуза Гильмулловна"]
[7,"Усали СОШ",null,"Хәзерге татар вакытлы матбугатында тел узенчәлекләре",null,"Ахунова Регина Равилевна"," ","Насибуллина ГХ"]
[8,"МБОУ «Малокирменская ООШ» Мамадышского муниципального района Республики Татарстан.","Татарский язык  и литература","“РАФАИЛ ГАЗИЗОВ ИҖАТЫНДА БАЛАЧАК  ХАТИРӘЛӘРЕНЕҢ  СӘНГАТЬЧӘ  СУРӘТЕ ҺӘМ  АНЫҢ ТӘРБИЯВИ   ӘҺӘМИЯТЕ”.","  Татарская литература.","Гимазова Лилия Фанилевна",9,"Гиздатуллин Ильфир Рахимшович(учитель татарского языка и литературы)."]
[9,"МБОУ \"Нижнеошминская СОШ\"","Татарский язык и литература.","Тема: \"Керәшен милли традицияләренең тәрбияви үзенчәлекләре.\"","Татар әдәбияты","Шафикова Гузель Фанисовна",6,"Шарипова Лидия Петровна, учитель татарского языка и литературы."]
[10,"МБОУ «СОШ №1 г. Мамадыш»",null,"Яраткан язучыбыз һәм фольклор",null,"Якимова Анастасия Григорьевна",null,"Шакирзянова Диляра Фазылзяовна",null,null,"от"]
[11,"МБОУ «Лицей №2 им. ак. К.А. Валиева г. Мамадыш»","Татарский язык и литература.","Кеше һәм табигать",null,"Каримова Ляйсан Шигапова Алина",11,"Гилязова Л.Р. Гиззатуллина З. Ф."]
{"$rows_empty":88}
[{"$f":"COUNT(A2:A100)","v":11}]

{"sheet":"Юный Окружающий мир","index":9,"n_rows":101,"n_cols":10,"rows_kept":101}
["№","Наименование\nОУ\n","Направление конкурсной работы","Название работы","Предмет ","ФИО автора работы","Класс ","Руководитель ","работа","олпата"]
[1,"МАОУ \"Гимназия №76\"","Юный исследователь, секция №1","Воспитание грамотного взрослого пешехода.","Окружающий мир","Сибгатуллин Рафаэль Ринатович","3 А","Рыбушкина Лидия Борисовна, учитель начальных классов МАОУ \"Гимназии №76\""]
[2,"МАОУ \"Гимназия №76\" г. Набережные Челны","Юный исследователь","Мёд- дар самой природы","Окружающий мир","Камалиева Азалия Салаватовна",3,"Рыбушкина Лидия Борисовна"]
[3,"МАОУ «Гимназия № 16» г.Уфы","Юный исследователь (для учащихся начальных классов)","«Мусор и его вторая жизнь»","Окружающий мир","Булатов Амир Ирекович","3 \"А\"","Бабаева Татьяна Валерьевна"]
[4,"МОУ-СОШ№7 г. Альметьевск","«Окружающий мир, здоровье, экология»","Строительство мусоросжигательного завода как решение проблемы утилизации бытового мусора г. Альметьевск","Экология","Суфиянов Тагир Радикович","1 \"В\"","Тазетдинова Зульфия Эльбрусовна,                                     учитель начальных классов"]
[5,"МАОУ \"Гимназия № 76\" г. Набережные Челны","\"Юный исследователь\" (для ","\"Квадратные помидоры -миф или реальность?\"","\"Окружающий мир, ","Желтов Михаил Валерьевич","3 Б","Верхотурова Наталья Анатольевна"]
[6,"МАОУ \"Гимназия №76\" г. Набережные Челны","Юный исследователь","Путешествие в страну молочную","Окружающий мир","Мазитова Аделина",3,"Рыбушкина Лидия Борисовна"]
[7,"МАОУ \"Гимназия №76\" г. Набережные Челны","Юный исследователь","Вода-источник жизни","Окружающий мир","Сафина Ралина",3,"Рыбушкина Лидия Борисовна"]
[8,"МАОУ \"СОШ № 7\" г. Альметьевск","Юный исследователь","\"Сладкий\" обман - напитки с пузырьками","Окружающий мир, здоровье, экология","Миннахметов Тимур Артурович",3,"Баязитова Ольга Александровна, учитель начальных классов"]
[9,"МАОУ \"Гимназия 76\" г. Набережные Челны","Окружающий мир, здоровье, экология","Альтернативные источники энергии: Солнечная энергия","Солнечная батарея как способ получения солнечной энергии","Гареев Амир Айратович","2 \"А\"","Рабаданова Гульнара Магомедовна"]
[10,"МАОУ лицей № 48 имени Александра Васильевича Суворова город  Краснодар","Психология","Мультфильмы -детское развлечение?","Окружающий мир, здоровье","Аракелян Алина Арсеновна",5,"Сакс Галина Ивановна"]
[11,"МАОУ лицей № 48 имени Александра Васильевича Суворова город  Краснодар","Юный исследователь","История моей семьи-история моего города, моей Родины","Окружающий мир, здоровье, экология","Балала Валерия Алексеевна",4,"Кулик Инна Араратовна"]
[12,"МАОУ лицей № 48 имени Александра Васильевича Суворова город  Краснодар","Юный исследователь","Функциональное пространство здания начальной школы: возможно ли это?","Окружающий мир, здоровье, экология","Турк Анастасия Павловна",4,"Кулик Инна Араратовна"]
[13,"МАОУ \"Гимназия № 76\"           г. Набережные Челны","Юный исследователь","Сила ростка ","Окружающий мир","Хаматдинова Шакира Раилевна ","3\"Б\"","Верхотурова Наталья Анатольевна  учитель начальных классов"]
[14,"МАОУ \"Гимназия № 76\"           г. Набережные Челны","Юный исследователь","Почему  утки не улители на зимовку из Наб.Челнов.?","Окружающий мир","Хаматдинов Самир Раилевич","4 \"А\"","Климина Маргарита Юрьевна учитель начальных классов"]
[15,"МОУ \"Лицей № 6 Ворошиловского района Волгограда\"","Юный исследователь","Спортивные занятия ключ к здоровью","Физическая культура","Кулькова София Макаровна Шеховцов Никита Сергеевич","4 \"В\"","Искалиева Нуржамал Анатольевна - учитель начальных классов, Лаптяну Сильва Николаевна - учитель физической культуры"]
[16,"МОУ \"Лицей № 6 Ворошиловского района Волгограда\"","Юный исследователь","Пчёлы и мёд","Окружающий мир","Сергеев Сергей Сергеевич","4 \"Б\"","Сапрыкина Екатерина Сергеевна - учитель начальных классов, Дубинина Ольга Владимировна - учитель музыки"]
[17,"МАОУ \"СОШ№7\"","Юный исследователь","А я маленький такой…","Окружающий мир","Мухаметгалиев Азат Марсельевич",3,"Баязитова Ольга Александровна, учитель начальных классов"]
[18,"Муниципальное автономное общеобразовательное учреждение \"Гимназия №76\"","Юный исследователь","Как стать счастливым","Окружающий мир","Плеханов Илья Георгиевич","4Б","Татьяна Леонидовна Ахмедова"]
[19,"МАОУ \"Гимназия №76\" г. Набережные Челны","Юный исследователь","Исследование и применение замкнутой цепи в сфере систем защиты от затопления","Окружающий мир","Шарифуллин Ибрагим Ильдарович",3,"Рыбушкина Лидия Борисовна"]
[20,"Муниципальное автономное общеобразовательное учреждение города Набережные Челны «Гимназия №76». ","         Юный исследователь (для учащихся начальных классов) Секция №1 «Окружающий мир, здоровье, экология»","Наблюдение над процессом выведения индоуток в инкубаторе и естественным путем. Сравнение полученных результатов","Окружающий мир","ТУКТАРОВА Алина Радиковна","3 а","Рыбушкина Л.Б."]
[21,"Гимназия № 76 г. Набережные Челны РТ.","Юный исследователь","Что делать если накипело? Накипь и ее влияние на человека.","Окружающий мир","Хайдарова Альмира Илнуровна",3,"Рыбушкина Лидия Борисовна"]
[22,"МАОУ СОШ №7 г.Альмтьевска","Нефтеловушка","Нефтеловушка","Экология","Исхаков Амир Ильдарович","3б ","Тимофеева Наталья Алексеевна, учитель начальных классов МАОУ СОШ №7 г.Альмтьевска"]
[23,"МБОУ «Заинская средняя \nобщеобразовательная школа № 6» \nЗаинского муниципального района \nРеспублики Татарстан\n","Юный исследователь","Чудесные свойства лимона","\"Окружающий мир, здоровье, экология\"","Моисеева Виктория Артёмовна",4,"Грушева Галина Владимировна"]
[24,"Муниципальное бюджетное общеобразовательное учреждение \"Заинская средняя общеобразовательная школа №6\" Заинского муниципального района Республики Татарстан","Юный исследователь","Почему выпадают молочные зубы?","Окружающий мир, здоровье, экология","Садыкова Алина Фанилевна",4,"Баландина Любовь Алексеевна"]
[25,"МАОУ \"Гимназия № 76","Юный исследователь","«В чем содержатся нитраты»","окружающий мир","Мотыгуллина Самира Маратовна",4,"Климина Маргарита Юрьевна,учитель начальных классов"]
[26,"МБОУ \"Владимировская ООШ\"","секция №1\"Окружающий мир,здоровье и экология\"","\"Поши- урман бизәге!\"","Әйләнә-тирә дөнья","Малов Александр Валерьянович","4 класс","Бачкова Елена Алексеевна,     учитель биологии      и химии"]
[27,"Муниципальное автономное образовательное учреждение «Средняя общеобразовательная школа № 7» г.Альметьевска РТ","Юный исследователь Секция №1 «Окружающий мир, здоровье, экология»","Почему утки не улетают зимой на юг",null,"Шакиров Артур Рустемович","3А","Баязитова Ольга Александровна, учитель начальных классов высшей квалификационной категории МАОУ «СОШ №7»"]
[28,"МБОУ \"Большешурнякская средняя школа\" ЕМР РТ","Юный исследователь","Мусор. Пути его утилизации.","Экология.","Такмашова Виктория Анатольевна",1,"Чумакова Марина Александровна, учитель начальных классов."]
[29,"МАОУ «Лицей № 78 имени А.С.Пушкина» г. Набережные Челны","Юный исследователь","Природа звука","Окружающий мир","Хайруллин Амир Эрикович","4 В","Верхотурова Надежда Ивановна учитель начальных классов высшей квалификационной категории"]
[30,"МБОУ \"Красногорская СОШ\"","Исследовательская работа","Бегония на твоем окне","Естествознание","Николаева Альмира Владиславовна","3 б","Минниханова Дамира Раифовна"]
[31,"МБОУ «Кутемелинская ООШ» Сармановского района РТ","Юный исследователь","\"Наши имена\"","Окружающий мир","Ахметбаева Гульшан Ринатовна",1,"Ахметаева Римма Григорьевна, учитель русского языка и литературы"]
[32,"МБОУ \"Тетюшская СОШ № 1 им.Ханжина П.С.\"","Юный исследователь (для учащихся начальных классов)","Умеют ли разговаривать кошки.","Окружающий мир","Кондакова Виктория Вадимовна ","4А","Кондакова Галина Борисовна, учитель начальных классов, кандидат педагогических наук"]
[33,"Республика Татарстан, Мамадышский район, г. Мамадыш, МБОУ ««Лицей №2 имени академика К.А. Валиева г. Мамадыш»","Юный исследователь","Лекарственные и кулинарные травы на подоконнике. \n","окружающий мир","Фархуллина Адиля, Саттарова Камила",null,"Вагизова З Ф, Лучкина Н А"]
[34,"Республика Татарстан, Мамадышский район, г. Мамадыш, МБОУ ««Лицей №2 имени академика К.А. Валиева г. Мамадыш»","Юный исследователь ","Редкие и охраняемые растения, произрастающие на территории Берсутского лесничества Мамадышского района РТ","Экология","Галеев Салават",3,"Галеева Г Г"]
[35,"Таканышская СОШ",null,"Режим дня",null,"Рахимова Самира",null,"Гайнуллина Н Д"]
[36,"МБОУ \"Нижнеошминская СОШ\"","« Юный исследователь »","Тема: «Чипсы : есть или не есть!»","Секция №1 «Окружающий мир, здоровье, экология»","Бегмурадова Малика Фарходовна",3,"учитель начальных классов Мухаметзянова Гульнар Габдрахмановна"]
[37,"МБОУ \"Нижнеошминская СОШ\"","Юный исследователь, «Окружающий мир, здоровье, экология»","Тема: «Почему хлеб бывает чёрным и белым?»","Окружающий мир","Потёмкина Софья Юрьевна",1,"Миннахметова Гульнур Габдулхаевна учитель начальных классов "]
[38,"МБОУ \"СОШ№1,г.Мамадыш\"","юный исследователь","\"Польза лука\"","Окружающий мир","Маратканов Милен Владиславович","1Б","Музлова Елена Анатольевна"]
[39,"МБОУ «Гимназия № 2»   имени Баки Урманче  Г.Нижнекамск РТ","юный исследователь","Эти удивительные дельфины","«Окружающий мир, здоровье, экология»","Лукоянова Валерия Александровна","1в","Сабитова Альбина Ханифовна"]
[40,"МБОУ \"Гимназия№2\" имени Баки Урманче","Юный исследователь ","Домашняя зубная паста и кариес","Секция №1 «Окружающий мир, здоровье, экология»","Сахабиев Шамиль Ирекович","2 А","Хакимова Лидия Хасаншаеховна -учитель начальных классов                        Саматова Равиля Зиннуровна -ассистент кафедры стоматологии детского возраста КазГМУ."]
[41,"МАОУ \"Гимназия №76\" г.Набережные Челны","Химия, биология, экология","Нетрадиционная косметология в домашних условиях","Окружающий мир","Валитова Диана Ильнаровна","4 В","Костина Валентина Михайловна, преподаватель начальных классов"]
[42,"МБОУ\"Лицей №2им ак К.А.Валиева\"","Юный исследователь","Мой родной город","окр.мир, история","Расулова Мадина","1Г","Нугуманова Альбина Ильдусовна, учитель начальных классов"]
{"$rows_empty":57}
[{"$f":"COUNT(A2:A100)","v":42}]

{"sheet":"Юный История","index":10,"n_rows":101,"n_cols":10,"rows_kept":101}
["№","Наименование\nОУ\n","Направление конкурсной работы","Название работы","Предмет ","ФИО автора работы","Класс ","Руководитель ","работа","оплата"]
[1,"МБОУ \"Малокирменская основная общеобразовательная школа\" Мамадышского муниципального района РТ\"","Юный исследователь","Народные пословицы и поговорки(проектная работа)","Начальные классы","Ханова Алёна Юрьевна",4,"Мубаракшина Энже Ясавиевна, учитель начальных классов высшей квалификационной категории"]
[2,"МБОУ \"Староузюмская ООШ\" Атнинского муниципального района","Юный исследователь","Ташчишмә авылының чишмәләре","Начальные классы","Сагитова Флюза Фанисовна",4,"Халикова Дания Юнусовна, учитель начальных классов"]
[3,"МБОУ \"Староузюмская ООШ\" Атнинского муниципального района","Юный исследователь","Тарихи эзләр буйлап","Начальные классы","Хисамиева Рузина Рустемовна",4,"Тимергалиева Венера Адгамовна, учитель начальных классов"]
[4,"МОУ \"Гимназия № 20\", г.о. Саранск РМ","Юный исследователь","\"Судьба человека\"","история","Романов Владислав Олегович","4В","Литяйкина Татьяна Николаевна, учитель начальных классов"]
[5,"МБОУ \"Верхнеошминская ООШ\""," Юный исследователь ","Кабер ташлары сере","история","Козина Диана Андреевна",4,"Рафикова Фирюза Габдулбаровна,учитель начальных классов"]
[6,"МАОУ «СОШ № 7» ","Краеведение","Судьбы своей строитель",null,"Галиева Элина Марселевна",3,"Тимофеева Наталья Алексеевна - учитель начальных классов"]
[7,"МБОУ \"Соснинская ООШ\"","Юный исследователь( для учащихся начальных классов) Секция №2 история","Авылымны доньяга таныткан \"Чабата\"","Начальный класс и группа продленного дня","Исмагилов Булат Маратович",3,"Исмагилова Гелюся Мухаррамовна учитель начальных классов, воспитатель группа продленного дня "]
[8,"МАОУ \"Лицей №2\" г. Альметьевска РТ","История, краеведение","Чувашская народная  вышивка - источник вдохновения","История, искусство","Анисахарова Виктория Максимовна",3,"Чиж Ольга Александровна учитель начальных классов высшей категории"]
[9,"МБОУ «Заинская средняя \nобщеобразовательная школа № 6» \nЗаинского муниципального района \nРеспублики Татарстан\n","Юный исследователь","Коллекционирование в моём окружении","История, краеведение","Исмагилова Диляра Ренатовна",4,"Грушева Галина Владимировна"]
[10,"МБОУ «СОШ № 3 г. Мамадыш»","«История, краеведение»","\"По тропинкам старинных книг\"","История","Костина Анастасия Сергеевна","4 Б","Потапова Светлана Николаевна, учитель начальных классов"]
[11,"МБОУ \"Зюринская СОШ\" Мамадышского муниципального района РТ","Юный исследователь ","\"Билгесез сугыш\" (Николай Илларионович Гавриловның сугышчан юлы мисалында)","История ","Кузнецова Кристина Владимировна","3 класс, член кружка \"Юный краевед\"","Кузнецов Владимир Николаевич учитель истории и обществознания, педагог дополнительного образования. "]
[12,"МБОУ \"СОШ№1,г.Мамадыш\"","Юный исследователь","Бытие выдающихся людей. Как я вижу Михаила Васильевича Ломоносова",null,"Музлова Дарья Сергеевна",4,"Валеева Алия Рустамовна"]
[13,"МБОУ «Лицей № 2 им. ак. К. Валиева г. Мамадыш»",null,"Воины десантники нашего района",null,"Камалетдинова Камилла",1,"Сибгатуллина Р М"]
[14,"МБОУ «Берсут-Сукачинская НОШ» Мамадышского  муниципального  района, РТ  ",null,"Цена победы, цена освобождения народов 1941-1945",null,"Шамсутдинов Рафис",null,"Хисамутдинова С.М"]
[15,"Таканышская СОШ",null,"Илем тарихы - халкым язмышы",null,"Камалова Ландыш",2,"Мулюкова Э Р"]
[16,"МБОУ \"Нижнеошминская СОШ\"","Юный исследователь (история, краеведение)","Тема: \"Гаиләм тарихында Бөек Ватан сугышының чагылышы\"","окружающий мир","Мубаракшин Ильгиз Ильсурович",4,"Яруллина Чулпан Ринатовна, учитель начальных классов"]
[17,"Большешиинская СОШ",null,"Увековеченная память",null,"Прокопьева Софья Петровна",1,"Прокопьева А В"]
[18,"МБОУ «Лицей №2 им. ак. К.А. Валиева г. Мамадыш","Юный исследователь (История)","Детство и жизнь академика К.А. Валиева","история","Зайцев Адель","                   3В","учитель Чанышева Г.Х.\r\n"]
[19,"МБОУ «Лицей №2 им. ак. К.А. Валиева г. Мамадыш","Юный исследователь (Краеведение)","История и достопримечательности г. Мамадыш","Краеведение и история","Мубаракшин Амир","                   3В","учитель Чанышева Г.Х.\r\n"]
[20,"МБОУ \"СОШ №3 г. Мамадыш\"","Юный исследователь ","История детских домов Мамадышского района","История, краеведение","Ханов Даниэль Анатольевич",2,"Григина Оксана Николаевна"]
{"$rows_empty":79}
[{"$f":"COUNT(A2:A100)","v":20}]

{"sheet":"Юный Физика, математика","index":11,"n_rows":101,"n_cols":10,"rows_kept":101}
["№","Наименование\nОУ\n","Направление конкурсной работы","Название работы","Предмет ","ФИО автора работы","Класс ","Руководитель ","работа","оплата"]
[1,"МАОУ \"СОШ № 7\" г.Альметьевск","Юный исследователь","Почему снег белый?","Физика","Хрусталев Антон Юрьевич","1 Б","Сабаева Мария Александровна, учитель начальных классов"]
[2,"МАОУ лицей № 48 имени Александра Васильевича Суворова город  Краснодар","Юный исследователь","Химический опыт -превращение \"Фараонова змея\"","Физики, математика, химия,информатика","Рязанов Максим Александрович",2,"Пестрякова Эллина Леонидовна"]
[3,"МАОУ лицей № 48 имени Александра Васильевича Суворова город  Краснодар","Юный исследователь","Скорость реакции человека","Физики, математика, химия,информатика, окружающий мир, здоровье, экология","Соловьева Татьяна Николаевна",3,"Федосеева Наталья Борисовна"]
[4,"МАОУ лицей № 48 имени Александра Васильевича Суворова город  Краснодар","Юный исследователь","Интернет зависимость-мф или реальность?","Физики, математика, химия,информатика","Фундукян Даниэла Арамовна",4,"Кулик Инна Араратовна"]
[5,"МАОУ \"Гимназия №76\" г. Набережные Челны","Юный исследователь","Мир кристаллов и их искусственное выращивание","Химия","Князев Амир Рустамавич",3,"Рыбушкина Лидия Борисовна"]
[6,"Муниципальное автономное общеобразовательное учреждение \"Гимназия №76\"","Юный исследователь","Первые шаги в мультипликации или\nлегко ли создать мультфильм\n","Информатика"," Якупов Аслан Русланович","4Б","Татьяна Леонидовна Ахмедова"]
[7,"МБОУ «Заинская средняя \nобщеобразовательная школа № 6» \nЗаинского муниципального района \nРеспублики Татарстан\n","Юный исследователь","Коррозия как источник быстрого разрушения металла","Химия","Фаттахова Элина Эдуардовна",4,"Грушева Галина Владимировна"]
[8,"МБОУ \"ЗСОШ №6\" г.Заинск","Юный исследователь","Орбиз. Способы применения.","химия","Горшунов Артур ",2,"Храмкова О.А."]
[9,"МБОУ \"СОШ №1 г.Мамадыш\""," Юный исследователь ","Старинные русские меры длины","Математика ","Габдрахманова Гузель Рамилевна",2,"Фахриева Елена Леонидовна"]
{"$rows_empty":90}
[{"$f":"COUNT(A2:A100)","v":9}]

{"sheet":"Юный русский язык  ","index":12,"n_rows":101,"n_cols":10,"rows_kept":101}
["№","Наименование\nОУ\n","Направление конкурсной работы","Название работы","Предмет ","ФИО автора работы","Класс ","Руководитель ","работа","оплата"]
[1,"МАОУ \"Гимназия №76\"","Юный исследователь, секция №4","Искусство декорирования ткани. Батик. Эстамп.","искусство","Суфиярова Алина Салаватовна","3 А","Бегунова Любовь Евгеньевна, педагог МАОУ ДО ХШ №1 г.Набережные Челны"]
[2,"МОУ \"Гимназия № 20\", г.о. Саранск РМ","Юный исследователь","Русский язык на конфетных обертках","русский язык","Сухарева Вероника Георгиевна","4В","Литяйкина Татьяна Николаевна, учитель начальных классов"]
[3,"МАОУ Гимназия №76 г. Наб Челны","Юный исследователь","Особенности перевода английских надписей на русский язык\nна школьных принадлежностях \n","русский язык","мухаметшина камилла ильдаровна","3 А класс","Лидия Борисовна Рыбушкина"]
[4,"МАОУ № 76","Юный исследователь","Что такое шамаиль?","Искусство","Шарифуллина Айсылу Ильдаровна","4\"А\"","Климина М.Ю."]
[5,"МБОУ «Лицей № 2 им. ак. К. Валиева г. Мамадыш»","Русский язык","Энциклопедия одного слова","Русский язык","Салахова Ильмира","2 В","Никифорова Елена Михайловна, учитель начальных классов"]
[6,"МБОУ \"Сокольская СОШ\"","Юный исследователь","Кукла-марионетка","технология","Шайхаттаров Адель Альбертович",2,"Вагайцева Олеся Ильгизовна, учитель начальных классов"]
[7,"МКОУ гимназия г.Вятские Поляны Кировская область","«Искусство, технология, русский язык  и литература»","\"Царица цветов\"","технология","Решетникова Анастасия Александровна",4,"Пономарева Анна Николаевна учитель начальных классов"]
[8,"МБОУ «Лицей № 2 им. ак. К. Валиева г. Мамадыш»",null,"Бумага ручной работы","технология","Гайнанов Амир",3,"Галимуллина А М"]
[9,"МБОУ «Лицей № 2 им. ак. К. Валиева г. Мамадыш»","«Искусство, технология, русский язык  и литература»","Кинзаши","технология","Садыкова Сирина",null,"Галиева Ф Я"]
{"$rows_empty":90}
[{"$f":"COUNT(A2:A100)","v":9}]

{"sheet":"Юный Татарский ","index":13,"n_rows":101,"n_cols":11,"rows_kept":101}
["№","Наименование\nОУ\n","Направление конкурсной работы","Название работы","Предмет ","ФИО автора работы","Класс ","Руководитель ",null,"Работа","Оплата"]
[1,"Муниципальное бюджетное общеобразовательное учреждение “Средняя общеобразовательная школа №8” Елабужского муниципального райлна Республики Татарстан","Юный исследователь (для учащихся начальных классов)\n                       Секция №5 «Татарский язык и литература»","Гөлзадә Әхтәмова иҗатында \nэкология темасы\n","Татарская литература","Ильясов\nАзат Уралович\n","4 б","Гильфанова Гульфинур Асгатовна, учитель татарского языка и литературы высшей квалификационной категории."]
{"$rows_empty":98}
[{"$f":"COUNT(A2:A100)","v":1}]

{"sheet":"Юный","index":14,"n_rows":99,"n_cols":11,"rows_kept":99}
["№","Наименование\nОУ\n","Направление конкурсной работы","Название работы","Предмет ","ФИО автора работы","Класс ","Руководитель ","работа","оплата"]
[1,"Ср. Кирмени","английский язык","«Особенности национального костюма татарского, русского и английского народов»",null,"Фархуллин Амир Раифович",4,"Шамсутдинова Лейля Азатовна"]
[2,"МБОУЛицей №2 им К.А. Валиева г. Мамадыш","Загадки английского языка","Самоанализ: мой характер или почему я выбрал музыкальный духовой инструмент ","Английский язык","Муллахметов Ильяс",3,"Валеева Алия Рустамовна"]
[3,"МБОУ \"Малокирменская основная общеобразовательная школа\" Мамадышского муниципального района РТ\"","Юный исследователь","\"Кече Кирмән сулыкларында кондызларның яшәү рәвеше\"(проектная работа)","Начальные классы","Гимазова Алия Фанилевна",2,"Закирова Фирдавса Рахимшовна, учитель начальных классов первой квалификационной категории",null,null,"от"]
[4,"МБОУЛицей №2 им К.А. Валиева г. Мамадыш","Юный исследователь","Откуда берутся дырки в хлебе",null,"Гимадиева",3,"Петрова Г Н"]
[5,"МБОУЛицей №2 им К.А. Валиева г. Мамадыш","Юный исследователь","Дело мастера боится",null,"Ефимова Юлия",3,"Садыкова Г М"]
{"$rows_empty":92}
[{"$f":"COUNT(A2:A98)","v":5}]

{"sheet":"Учителя","index":15,"n_rows":187,"n_cols":8,"rows_kept":187}
["№","Наименование\nОУ\n","Название работы","ФИО автора работы","Класс ","Руководитель ","работа","оплата"]
[1,"МБОУ \"Малокирменская ООШ\" Мамадышского муниципального района РТ","Учебный проект в начальной школе ","Мубаракшина Энже Ясавиевна"]
[2,"МБОУ “Верхнеошминская ООШ”                                                                                           Мамадышского района РТ","Укучыларның фәнни-гамәли эшчәнлеген оештыру","Мухарлямова Ленуза Гильмулловна"]
[3,"МАОУ «СОШ№7» г. Альметьевск РТ","Работа с одаренными детьми в начальной школе (из опыта работы)","Баязитова Ольга Александровна"]
[4,"МАОУ «Гимназия №76» г. Набережные Челны РТ","Самостоятельность младшего школьника ","Рыбушкина Лидия Борисовна"]
[5,"МБОУ \"СОШ № 2\" г. Агрыз РТ","Деятельностный   подход во внеурочной деятельности (из опыта работы).","Михайлова Эльвира Ильгизовна"]
[6,"МБОУ \"СОШ№1,г.Мамадыш\"","\"Что мы знаем об имени существительном\"","Музлова Елена Анатольевна"]
[7,"МБОУ \"СОШ№1,г.Мамадыш\"","Тема: «Деление многозначных чисел на однозначное число»","Мазилова Марина Юрьевна"]
[8,"МБОУ \"СОШ№1,г.Мамадыш\"","Конспект урока по окружающему миру \"На службе у человека\" 4 класс (Школа 2100)","Фахриева Елена Леонидовна"]
[9,"МАДОУ Детский сад №35 г. Уфа","«Конструирование  и робототехника, как средство развития навыков конструкторской, исследовательской  и творческой деятельности детей в условиях современной дошкольной  образовательной организации»","Власова Юлия Юрьевна"]
[10,"МБОУ \"Верхнеошминская ООШ\"","Статья \"Работа с одаренными \"","Шакирова Зульфия Габдулхаковна,учитель русского языка"]
[11,"Муниципальное автономное образовательное учреждение \"Средняя общеобразовательная школа №7\"  г. Альметьевска Республики Татарстан","Роль исследовательской деятельности в развитии одаренности школьников","Сабаева Мария Александровна"]
[12,"МБОУ \"СОШ №1 г.Мамадыш\"","Конспект урока \"Величины. Длина\"  (Школа 2100)","Брызгалова Инна Николаевна"]
[13,"МБОУ \"СОШ № 1\" Менделеевского муниципального района  РТ",null,"Шарафутдинова Светлана Евгеньевна"]
[14,"МБОУ \"Дюсьметьевская СОШ\" Мамадышского муниципального района РТ","Организация работы с одаренными детьми на уроках информатики ","Кошкина Елена Петровна"]
[15,"МБОУ \"Дюсьметьевская СОШ\" Мамадышского муниципального района РТ","Организация работы с одаренными детьми","Семенов Радик Михайлович"]
[16,"МБОУ \"Дюсьметьевская СОШ\" Мамадышского муниципального района РТ","Организация работы с одаренными детьми в начальной школе","Семенова Светлана Ивановна","дважды"]
[17,"МАОУ «СОШ № 7»                           г. Альметьевска, РТ","Исследовательская и проектная деятельность младшего школьника как одна из форм работы с одарёнными детьми ","Тимофеева Наталья Алексеевна"]
[18,"МБОУ «Среднекирменская СОШ» Мамадышского муниципального района РТ","Подготовка учащихся к ОГЭ по русскому языку в сельской школе ","Марданова Алсу Шамиловна"]
[19,"МБОУ \"Среднекирменская СОШ” Мамадышского района РТ","Биология дәресләрендә укучыларның танып-белү эшчәнлеген формалаштыру.","Фасхутдинова Наиля Асгатовна"]
[20,"МБОУ \"СОШ №1 г.Мамадыш\"","Конспект урока по  русскому языку  c использованием сингапурских структур \"Развитие умения находить в словах приставки и образовывать слова с помощью приставок.\" 3 класс (Школа 2100)","Филиппова Ольга Николаевна"]
[21,"МБОУ «Гимназия №36»","«Работа с одаренными детьми. Система   подготовки учащихся к олимпиаде по татарскому языку и литературе»","Исмагилова Венера Максумовна, Хакимуллина Дания Нотфулловна, Аюпова Лилия Хайдаровна"]
[22,"МБОУ \"СОШ №1 г.Мамадыш\"","Самоанализ внеклассного мероприятия с целью трансляции опыта работы","Валеева Алия Рустамовна"]
[23,"МБОУ \"Дюсьметьевская СОШ\" Мамадышского муниципального района РТ","Организация работы с одаренными детьми на уроках русского языка и  литературы","Семенов Радик Михайлович","дважды"]
[24,"МБУ «Гимназия 77», г.о. Тольятти","Формирование компетентностей при работе с одаренными детьми","Шишканова Ирина Дмитриевна"]
[25,"МБУ «Гимназия 77», г.о. Тольятти","Проектирование образовательной среды как вектор успешного развития творческих способностей учащихся","Молоткова Любовь Федоровна"]
[26,"МКУ «Отдел образования» исполнительного комитета  Мамадышского муниципального района РТ","Методические рекомендации  по организации подготовки к ЕГЭ.","Мухамадеева Юлдуз Саяфовна "]
[27,"МБОУ \"Мало-Лызинская СОШ»","Военно-спортивные игры как один из факторов патриотического воспитания подростков.","Исмагилов Марат Фаритович"]
[28,"МБОУ «ЗСОШ№6»ЗМР РТ","Исследовательская деятельность в начальной школе","Грушева Галина Владимировна"]
[29,"МБОУ \"СОШ № 3 г. Мамадыш»Мамадышского муниципального района РТ","4 ноября – день народного единства","Фазлиева Гульнара Музиповна ГилязоваИльхамия Рустамовна"]
[30,"МБОУ \"ЗСОШ № 6\" г. Заинска РТ","Исследование как открытие нового знания","Баландина Любовь Алексеевна"]
[31,"МБОУ \"Малокирменская ООШ\" Мамадышского муниципального района РТ","Кружковая работа в начальной школе","Закирова ФирдавсаРахимшовна"]
[32,"МБОУ «Арская средняя общеобразовательная школа №1 им.В.Ф.Ежкова с углубленным изучением отдельных предметов» \"Школа-центр компетенции в электронном образовании\"","Проект эшчәнлеге аша сәләтле укучыларны барлау","Заляева Аниса Мухаметовна Сафиуллина Гульназ Назиповна"]
[33,"МБОУ \"ЗСОШ №6\" г.Заинск","Повышение учебной мотивации младших школьников в условиях реализации ФГОС\"","Храмкова О.А."]
[34,"МБОУ \"СОШ № 2\" г. Агрыз  РТ","Развитие одаренных детей в системе экологического образования – взаимосвязь семьи и школы.","Валиуллина Светлана Венедиктовна"]
[35,"МБОУ \"СОШ №1 города Мамадыш\"","Татар халык авыз иҗатының һәм халык педагогикасының бүгенге көндәге роле","Мингазова Альфия Наилевна"]
[36,"МБОУ \"СОШ № 1\" г. Менделеевск РТ","Работа по подготовке к предметным олимпиадам и выявлению лидерских качеств у учащихся  (из опыта работы).","Ярославцева Людмила Валерьевна"]
[37,"МБОУ \"СОШ № 1\" г. Менделеевск РТ","Проблемные ситуации – как метод повышения мотивации \nучащихся на уроках биологии\n","Максютина Алсу Ильдусовна"]
[38,"МБОУ \"СОШ № 3\" Менделеевского муниципального района РТ","Мы - патриоты России Внеурочная деятельность","Аликбарова Альбина Рафиковна Исрафилова Светлана Харисовна"]
[39,"МБОУ «Нижнеякинская СОШ» Мамадышского муниципального района РТ","Музыкаль сәләтле балалар белән эш","Шарифуллин Айрат Миннуллович"]
[40,"МБОУ \"СОШ № 1\" г.  Менделеевск  РТ","Татар теле дәресләрендә сәләтле балаларның дивергент фикерләвен үстерү чарасы буларак фәнни тикшеренү эшчәнлеген оештыру ","Смирнова Гульнара Рашатовна"]
[41,"МБОУ \"СОШ № 1\" г.  Менделеевск  РТ","Сәләтле балалар белән эш алымнары","Ганиева Алсу Сахиулловна"]
[42,"МБОУ \"СОШ № 1\" г.  Менделеевск  РТ","Сәләтле балалар белән эш.","Садыкова Алсу Наиловна"]
[43,"МБОУ \"СОШ № 4\" г. Мамадыш РТ","Внеурочная деятельность по географии и биологии (из опыта работы)","Кузнецова Ольга Владимировна"]
[44,"МБОУ \"СОШ № 1\" г. Менделеевск РТ","Организация  исследовательской деятельности обучающихся на уроках словесности и во внеурочной деятельности как  способ самореализации одарённых детей  (из опыта работы)","Смирнова Люция Геннадиевна"]
[45,"МБОУ \"СОШ № 1\" г. Менделеевск РТ",null,"Ибатуллина Фаниса Анваровна"]
[46,"МБОУ Сарсак-Омгинского лицея Агрызского муниципального района РТ","Работа с одарёнными детьми в сельской школе.","Гаврилова Елена Ивановна Широбокова Ольга Николаевна"]
[47,"МБОУ \"СОШ № 1\" г. Менделеевск РТ","Татар теле һәм әдәбиятын укыту барышында укучыларның фәнни-тикшеренү һәм мөстәкыйль эшчәнлеген оештыру һәм формалаштыру","Галимуллина Минзиля Карамовна"]
[48,"МБОУ \"СОШ №1 г.Мамадыш\"","Методические рекомендации по работе с одаренными детьми по математике ( из опыта работы)","Клинова Е.Г. Учитель высшей категории\nМБОУ «СОШ №1, города Мамадыш»\n"]
[49,"МБОУ \"СОШ № 4\" г. Мамадыш, РТ","Технология проблемного обучения чтению на уроках английского языка в старшей школе (из опыта работы)","Набиева Мария Александровна"]
[50,"МБОУ «СОШ№4»,г.Мамадыш","Одаренные дети-удача для учителя (из опыта работы)","Шайдуллина А.С"]
[51,"ГБООУ \"БСШИ г. Болгара РТ","Формирование познавательных способностей у воспитанников младшего школьного звена.","Филиппова Юлия Леонидовна"]
[52,"ГБООУ \"БСШИ г. Болгара РТ","ЗДОРОВЬЕСБЕРЕЖЕНИЕ ШКОЛЬНИКОВ  САНАТОРНОЙ ШКОЛЫ – ИНТЕРНАТА В УСЛОВИЯХ РЕАЛИЗАЦИИ ФГОС","Галимова Гульчира Зигангараевна"]
[53,"ГБООУ \"БСШИ г. Болгара РТ","План-конспект урока во 2 классе с русскоязычными обучающимися \"Мин чисталык яратам\".","Сагирова Гузель Юсуповна"]
[54,"МБОУ \"Гимназия №2» имени Баки Урманче г. Нижнекамска  РТ","Работа с одарёнными","Галиякбарова Фания Шарифьяновна  Сахабутдинова Саимя Минвалиевна  Фаляхова Гульзида Хикамутдиновна"]
[55,"МБОУ \"СОШ № 1\" г. Менделеевск  РТ","Сәләтнең бер өлеше тумыштан, тугыз өлеше тырышлыктан...","Исмагилова Эльнара Асхатовна"]
[56,"МБОУ \"Гимназия №2» имени Баки Урманче г. Нижнекамска НМР РТ","Исследовательская деятельность учащихся в системе работы учителя","Муратова Лариса Миншаеховна"]
[57,"МБОУ \"Гимназия №2» имени Баки Урманче г. Нижнекамска НМР РТ","Фәнни- тикшеренү эшчәнлеге аша иҗади шәхес тәрбияләү.","Шаймухаметова Фанзиля Мирзануровна"]
[58,"ГБООУ \"БСШИ г. Болгара РТ","Психологическая атмосфера на уроках татарского языка и литературы.","Минахметова Гульнур Нуховна"]
[59,"МБОУ \"СОШ № 1 г. Мамадыш” РТ","Уен технологиясен кулланып, рус телле укучыларның коммуникатив компетенциясен  үстерү. ","Ахметзянова Раиса Минлегалиевна"]
[60,"МБОУ «Детский сад № 12 «Лейсен» г.Мамадыш» Мамадышского муниципального района РТ","\"Подготовка детей в школу\"","Хафизова Гулия Нурмухаметовна"]
[61,"МБОУ \"СОШ № 4 г. Мамадыш» РТ","Разработка контрольно-диагностического материалапо математике в 5 классе. Раздел «Площади и объемы».","Галочкина Гульназ Мирзаяновна"]
[62,"МБОУ «СОШ № 4 г. Мамадыш»  РТ","«Система работы с одаренными детьми»","Раимова Гульнара Наилевна"]
[63,"ГБООУ \"БСШИ г. Болгара РТ","«Особенности научно-исследовательской работы в системе дополнительного образования».","Михеева Ирина Николаевна, Брыкалова Евгения Алексеевна"]
[64,"ГБООУ « Болгарская санаторная школа-интернат»"," « Создание гуманистической воспитательной среды в условиях развития образования»","Кобенячкина Ольга Александровна"]
[65,"МБОУ«Ново-Альметьевская основная общеобразовательная школа»","Организация  и формы работы с одарёнными детьми ","Гатауллина О.А, Секретова Г.С. "]
[66,"МБОУ \"Гимназия №2» имени Баки Урманче г. Нижнекамск  РТ","Пути развития способностей и одаренности","Исламова Илиза Халафовна"]
[67,"МБОУ \"СОШ № 8\" г. Елабуга РТ","Применение технологии развития критического мышления в работе с одаренными детьми на уроках.","Герасимова Любовь Николаевна"]
[68,"МБОУ \"Нижнесуньская СОШ\" Мамадышского муниципального района РТ","“Яңа мәктәп” \nшартларында \nукучының иҗади \nфикерләү сәләтен үстерү\n\n\n\n\n","Сахапова Лейсан Ильдусовна"]
[69,"МБОУ \"Большешурнякская средняя школа\" Елабужского муниципального района РТ","Формирование познавательной активности учащихся на уроках математики","Миросанова Валентина Васильевна"]
[70,"МБОУ \"СОШ № 2\" г. Нижнекамск РТ","Работа с одаренными детьми в условиях реализации ФГОС ","Шадренкова Ольга Валентиновна, Тищенко Ольга Васильевна"]
[71,"МБОУ \"Красногорская СОШ»","Работа с номенклатурой на уроках географии (из опыта работы).","Саттарова Раиса Ильсуровна"]
[72,"МБОУ \"СОШ № 8\"  Елабужского муниципального района РТ. ","Применение признаков делимости при решении задач.","Исакова Сирень Хикамутдиновна"]
[73,"МБОУ \"Гимназия №2» имени Баки Урманче г. Нижнекамска  РТ","Социально - педагогические аспекты работы с одаренными детьми. ","Шакирова Эндже Каримовна,    Валиева Сирень Фардусовна"]
[74,"РТ, Мамадышский район,  МБОУ «Красногорская СОШ»","Работа с одаренными детьми в условиях ФГОС.","Ганиева Кадрия Ахметовна"]
[75,"РТ, Мамадышский район,  МБОУ «Красногорская СОШ»","Татар теле һәм әдәбияты дәресләрен укытуның сыйфатын үстерүдә фәнни тикшеренү эшләренең әһәмияте.","Васильева Раушания Аглулловна"]
[76,"МБОУ СОШ №2 г. Агрыз РТ","Работа с детьми с высокой учебной мотивацией и одаренностью","Дорось Оксана Васильевна"]
[77,"МБОУ \"Красногорская СОШ»","Приемы эффективной подготовки к единому государственному экзамену по математике","Мустафина Венера Раимовна"]
[78,"Муниципальное  бюджетное  общеобразовательное учреждение «Средняя общеобразовательная школа  № 2  г. Агрыз Республики  Татарстан»","Деятельностный   подход во внеурочной деятельности (из опыта работы","Галеева Раиля Равилевна"]
[79,"Елабуга","Система работы учителя физики  при организации  исследовательской деятельности учащихся","Фаляхова Гульзида Хикамутдиновна Абдуллиа Милауша Хикамутдиновна Исакова Сирень  Хикамутдиновна"]
[80,"МБОУ \"Гимназия №2\" имени Баки Урманче г. Нижнекамск РТ","Работа  с  одаренными  детьми на занятиях  изобразительного  искусства","Сафина Лена Гарифьяновна"]
[81,"МКОУ СОШ с.СтарыйИрюкМалмыжского района Кировской области","Повышение качества знаний учащихся через использование исследовательской  деятельности на уроках химии","Салахеева Зульфия Минневазиховна","очно"]
[82,"МБОУ \"Лицей №9 им А.С. Пушкина ЗМР РТ»","ИЗ ОПЫТА ИНТЕГРАЦИИ  ПРОЕКТНОЙ ДЕЯТЕЛЬНОСТИ  УЧАЩИХСЯ  НА УРОКАХ  МАТЕМАТИКИ И ХИМИИ ","Афанасьева Людмила Николаевна, Кушниковская Галина Александровна"]
[83,"МБОУ «Малосуньская ООШ» Мамад.района РТ","Сәләтле бала белән эш","Гусамова Разина Файзулхаковна"]
[84,"МБОУ \"Чарлинская средняя школа» Кукморского муниципального района  РТ",null,"Бочкарева Светлана Михайловна"]
[85,"МБОУ \"Кляушская СОШ»","Формы работы с одарёнными детьми","Сайфутдинова Венера Назирьяновна"]
[86,"ГБОУ \"МШИ для детей с ОВЗ\" г. Мамадыш РТ","Экологическое образование детей младшего школьного возраста с ограниченными возможностями здоровья во внеурочной деятельности.","Бакакина Ольга Юрьевна, Максимова Елена Владимировна"]
[87,"ГБОУ \"МШИ для детей с ОВЗ\" г. Мамадыш РТ","Формы и методы воспитания гражданских качеств учащихся через изучение культурных традиций города, района","Балашова Ирина Петровна, Гимадиева Альбина Алексеевна"]
[88,"Муниципальное  бюджетное общеобразовательное учреждение  «Лицей №2 имени академика К. А. Валиева города Мамадыш» Мамадышского муниципального района  Республики Татарстан","Развитие критического мышления для формирования мышления младших школьников","Вагизова Зинфира Гафиятулловна, Лучкина Наталья Александровна."]
[89,null,null,"ВагизоваМиннуриВасиловна, методист МКУ «Отдел образования» Мамадышского муниципального района"]
[90,null,null,"ВагизоваМиннуриВасиловна, методист МКУ «Отдел образования» Мамадышского муниципального района"]
[91,"ГБОУ \"МШИ для детей с ОВЗ\" г. Мамадыш РТ","Применение интерактивных методов при обучении детей с ограниченными возможностями здоровья.","Вагизова Гузель Раимовна, Нагаева ЛейляТагировна"]
[92,"ГБОУ \"МШИ для детей с ОВЗ\" г. Мамадыш РТ","Методические основы применения информационных технологий на уроках трудового обучения.","Васильева Елена Медхатовна, Рафикова Гульнара Шамилевна"]
[93,"МБОУ «СОШ № 4 г. Мамадыш»","Использование инновационных технологий на уроках химии, биологии с целью повышения качества учебного процесса.","Габдрахманова Зульфия Махмутовна"]
[94,"МБОУ «Лицей №2 им. ак. К.А. Валиева г. Мамадыш»","Белем бирү системасында тәрбия эшчәнлеген формалаштыруда төп компонентлар","Гилязова Лилия Равилевна Гиззатуллина Земфира Фаритовна"]
[95,"МБОУ «СОШ№4 г.Мамадыш», МБОУ ДОД «ДДЮ» г.Мамадыш","Организация проектной деятельности на занятиях экологического объединения «Экологи – исследователь»","Запольская Елена Николаевна"]
[96,"МБОУ \"СОШ № 3\" г. Мамадыш РТ","Уроки-проекты в начальной школе","Загидуллина Гульнара Марселевна Мухаметханова Елена Анатольевна"]
[97,"МБОУ «Лицей №2 им. ак. К.А. Валиева г. Мамадыш»","Сәләтле укучылар белән эшләү системасы.","Гафурова Розалия Хусаиновна, Камалова Гульназ Хасановна."]
[98,"МБОУ «Лицей №2 им. ак. К.А. Валиева г. Мамадыш»","Башлангыч сыйныфларда сәләтле балалар белән эш алымнары ","Каримова Лилия Миннахметовна"]
[99,"МБОУ «Лицей №2 им. ак. К.А. Валиева г. Мамадыш»","Формирование позитивного мышления как технология сохранения психического здоровья учащихся.","Каримуллина Насима Зуфаровна"]
[100,"МБОУ \"СОШ № 1 г. Мамадыш РТ\"","Инновацион технологияләр кулланып укыту","Шаһиева Энҗе Рафаил кызы Миннегалиева Гөлназ Сәләхетдин кызы"]
[101,"ГБООУ «Болгарская санаторная школа – интернат»","покормите птиц","Низамова Алсу Салимовна"]
[102,"МБОУ «Лицей №2 им. ак. К.А. Валиева г. Мамадыш»","Система работы с одаренными детьми в начальной школе","Петрова Гульнур Нуретдиновна  Хабибрахманова Резида Ильсуровна  Никифорова Е.М."]
[103,"МБОУ «Кимовская средняя общеобразовательная школа» Спасского муниципального района РТ","Развитие логического мышления учащихся на уроках математики","Фатхрахманова Нурия Нуретдиновна"]
[104,"МБОУ \"СОШ № 3  г. Мамадыш»","Воспитание толерантности у детей младшего школьного возраста.","Потапова Светлана Николаевна Григина Оксана Николаевна"]
[105,"МБОУ «Кемеш-Кульская ООШ» Мамадыщского муниципального района РТ","«Ш.Маннурның “Агымсулар га карап” повестенда җирле сөйләм үзенчәлекләре”","Саматова Зульфира Рифхатовна"]
[106,"МКУ «Отдел образования» исполнительного комитета Мамадышского муниципального района  РТ"," Роль  школьной библиотеки в поддержке одаренных  детей","Сафина  Гузалия Мухаметзяновна"]
[107,"МБОУ «Лицей №2 им. ак. К.А. Валиева г. Мамадыш»","“Федераль дәүләт белем бирү стандартлары шартларында укучыларның коммуникатив компетенцияләрен үстерү.” ","Сафина Г. Г., Фазлиева Л. М."]
[108,"МБОУ «Лицей №2 им. ак. К.А. Валиева г. Мамадыш»","Развитие учащихся в процессе формирования универсальных учебных действий.","Сибгатуллина Резида Миргазизовна Сафина Гулсина Назиповна"]
[109,"МБОУ «Лицей №2 им. ак. К.А. Валиева г. Мамадыш»",null,"Фазлеева, Галимуллина"]
[110,"МБОУ «Лицей №2 им. ак. К.А. Валиева г. Мамадыш»",null,"Фазлиева, Гилязова"]
[111,"МБОУ «СОШ №1 г. Мамадыш»","Сәләтле шәхес тәрбияләү","Шамсутдинова Алсу Наилевна"]
[112,"МБОУ «Лицей №2 им. ак. К.А. Валиева г. Мамадыш»",null,"Галеева Гуня"]
[113,"МБОУ «Лицей №2 им. ак. К.А. Валиева г. Мамадыш»",null,"Галиева Ф.Я.Садыкова Г. М."]
[114,"МБДОУ \"Детский сад №12\"Лейсен\" г. Мамадыш","Конспект  образовательной деятельности   с детьми средней группы","Кузнецова Р А"]
[115,"МБОУ «Лицей №2 им. ак. К.А. Валиева г. Мамадыш»",null,"Ермолаевой и Шайхутдиновой"]
[116,"МБОУ «ЗСОШ № 6» г. Заинск",null,"Хохлова Л.В."]
[117,"МБДОУ \"Детский сад №12\"Лейсен\" г. Мамадыш","Су һәм аның үзлекләре.(эш тәҗрибәсеннән)","Гасимова Г.Г."]
[118,"МБДОУ \"Детский сад №12\"Лейсен\" г. Мамадыш","«Конструктор «Лего»,  как средство формирования математических представлений у дошкольников»","Марсина Н.В."]
[119,"МБДОУ \"Детский сад №12\"Лейсен\" г. Мамадыш","«Легоконструирование как средство развития пространственного мышления детей дошкольного возраста» (из опыта работы)","Шипулина И.Р."]
[120,"МБДОУ \"Детский сад №12\"Лейсен\" г. Мамадыш","Экспериментально исследовательская деятельность как способ интеграции знаний детей(из опыта работы)","Гареева М.В. "]
[121,"МБОУ \"Карадуванская гимназия имени Баки Зиятдинова» Балтасинского района  РТ","Система подготовки обучающихся к олимпиадам.","Галимова Рауза Рафаэловна Садикзянова Зульфия Зайдулловна"]
[122,"МБОУ «Лицей №2 им. ак. К.А. Валиева г. Мамадыш»","Экологическое образование и воспитание в школе","Галеева Гульназ Газимовна"]
[123,"МБОУ \"Нижнеякинская СОШ\" Мамадышского муниципального района РТ","Развитие творческой способности на уроках истории","Валиахметова Альфина Хуснулловна"]
[124,"ГБОУ «Мамадышская школа-интернат для детей с ограниченными возможностями здоровья»","«Использование информационных технологий на уроках русского языка в обучении детей с ограниченными возможностями здоровья»","Мухаметзянова Эльмира Равилевна"]
[125,"МБОУ \"Катмышская средняя общеобразовательная школа\" Мамадышского муниципального района РТ\"",null,"Загидуллина Г.С."]
[126,"МБОУ «Лицей №2 им. ак. К.А. Валиева г. Мамадыш»",null,"Залилова А I"]
[127,"МБОУ \"СОШ № 3 города Мамадыш\" ","Формы и методы работ на уроке и во внеурочной деятельности по повышению мотивационной сферы учащихся","Чернышова Елена Александровна"]
[128,"МБОУ \"Средняя общеобразовательная школа №7\" г. Нижнекамска","\"Почему наши дети обманывают и врут\"","Новикова Любовь Николаевна"]
[129,"МБОУ \"СОШ № 70\" г. Казань  РТ","Әдәбиятдәресләрендә музыка сәнгатеәсәрләрен кулану","Бикбулатова Рузиля Мунировна Мухамадшина Рузиля Ризвановна"]
[130,"МБОУ «Лицей №2 им. ак. К.А. Валиева г. Мамадыш»",null,"Гурьянова РФ"]
[131,"МБОУ \"СОШ № 4\" г. Мамадыш РТ",null,"Воронцова Л"]
[132,"МБОУ \"Школа № 70\" г. Казань РТ","Рус мәктәпләренең башлангыч сыйныфларында татар теленә өйрәтүдә уен технологиясе","Якубова Наиля Габдрахмановна"]
[133,"ГБОУ \"Мамадышская школа-интернат для детей с ограниченными возмоңностями здоровья\"","Пусть поколения знают и помнят.","Низамова Альбина Галимзяновна, Чекараева Римма Николаевна "]
[134,"ГБОУ \"Мамадышская школа-интернат для детей с ограниченными возможностями здоровья\"","Особенности организации внеурочной деятельности по музыкально-эстетическому воспитанию детей с ОВЗ.","Терешева Эльза Ильшатовна"]
[135,"МБОУ \"Школа № 70\" г. Казань РТ","Внеурочное занятие  по финансовой грамотности.","Сафина Наиля Рашитовна"]
[136,"МБОУ «Лицей №2 им. ак. К.А. Валиева г. Мамадыш»","Методы работы с одарёнными детьми","Ахмадуллина Р И Галимова Л Н"]
[137,"МБОУ «Гимназия № 2»   имени Баки Урманче  Г.Нижнекамск РТ","Татар  теле һәм әдәби укытуда   яңа педагогик  технологияләр  куллану","Сабитова Альбина Ханифовна"]
[138,"МБОУ \"СОШ № 70\" г. Казань РТ","Татар теле һәмәдәбиятынукытуда проект методларын куллану","Артюшина Мария Семеновна"]
[139,"МБОУ «Гимназия № 2»   имени Баки Урманче  Г.Нижнекамск РТ","Сәләтле балалар белән эш юнәлешләре.","Хакимова Лидия Хасаншаеховна"]
[140,"МБОУ «Лицей №2 им. ак. К.А. Валиева г. Мамадыш»",null,"Шишкина Ю А Шевяхова Л В"]
[141,"МБОУ «СОШ № 4 г. Мамадыш»","ИСПОЛЬЗОВАНИЕ информационно-коммуникационных технологий НА УРОКАХ ТЕХНОЛОГИИ  В  ШКОЛЕ.","Ханафеев Ильнур Мухаметович"]
[142,"МБОУ «Лицей №2 им. ак. К.А. Валиева г. Мамадыш»","Системно-деятельностный подход в преподавании биологии в условиях введения ФГОС","Ханафеева Роза Махмутовна"]
[143,"МБОУ \"СОШ № 70\" г. Казань РТ","Воспитание толерантности у учащихся при изучении темы  «Страны мира» на уроке английского языка","Сафина Альфира Фаридовна, Хабибуллина Ильсеяр Ильдаровна"]
[144,"ГБОУ «Мамадышская школа-интернат для детей с ограниченными возможностями здоровья», г.Мамадыш РТ","Роль народных традиций и обычаев в изучении татарского языка учащихся с ОВЗ. ","Шарифуллина Галина Петровна Хасаншина Лейсан Илдусовна"]
[145,"МБОУ \"Школа № 70\" г. Казань РТ","Сәләтле укчылар белән иҗади эшләү (Творческая работа с одаренными)","Хафизова Гулия Саматовна"]
[146,"МБОУ \"Школа № 70\" г. Казань РТ","Известные политики","Орлова Нина Анатольевна, Миронова Екатерина Викторовна"]
[147,"МБОУ \"Школа № 70\" г. Казань РТ","Посмотри на себя со стороны","Миронова Екатерина Викторовна, Бурый Артур Геннадьевич"]
[148,"МБОУ \"Школа № 70\" г. Казань РТ","Польза чтения","Кулиева Лариса Георгиевна, Колесникова Анастасия Сергеевна"]
[149,"ГБОУ «Мамадышская школа-интернат для детей с ограниченными возможностями здоровья», г. Мамадыш","Роль дидактической игры в процессе обучения младших школьников с ОВЗ.","Хакимова М. Н."]
[150,"МБОУ «Лицей №2 им. ак. К.А. Валиева г. Мамадыш»","«Успех, успешность, успешная школа – что это такое?»","Чанышева Г Х"]
[151,"Куюк Ерыкса",null,"Рахматуллина Гөлнара Рәшитовна  Галиева Равия Зиятдиновна"]
[152,"ГБОУ «Мамадышская школа-интернат для детей с ограниченными возможностями здоровья», г.Мамадыш РТ","Способы развития речи у детей с ограниченными возможностями здоровья","Сальманова Л.Г"]
[153,"МБОУ \"Катмышская средняя общеобразовательная школа\" Мамадышского муниципального района РТ\"","Якташ язучыларыбыз иҗатында сугыш темасы.","Хуснуллина Р.Ф"]
[154,"МБОУ «Лицей №2 им. ак. К.А. Валиева г. Мамадыш»",null,"Шакирова Л.Ф Сайфутдинова ФФ"]
[155,"МБОУ «Лицей №2 им. ак. К.А. Валиева г. Мамадыш»",null,"Талипова Ф Р"]
[null,"МБОУ «Лицей №2 им. ак. К.А. Валиева г. Мамадыш»",null,"Габдрафикова А И "]
[null,"МБОУ «Лицей №2 им. ак. К.А. Валиева г. Мамадыш»","разработки урока:\" Попеременно двухшажный ход\"","Гадиева И В"]
[null,"МБОУ \"Куюк-Ерыксинская СОШ\" Мамадышского муниципального района","Разработка интегрированного урока в 5 классе","Закирова Э.И, Саетова Р.Т."]
{"$rows_empty":11}
[{"$f":"COUNT(A2:A160)","v":155}]
[null,"всего ученики ",{"$f":"Юный!A99+'Юный Татарский '!A101+'Юный русский язык  '!A101+'Юный Физика, математика'!A101+'Юный История'!A101+'Юный Окружающий мир'!A101+'Татарский '!A101+Математика!A101+'Русский язык '!A101+'Загадки английского'!A101+'Созидательный труд '!A101+'Химия, биология, экология'!A101+Физика!A101+'География, экономика'!A101+'История '!A101","v":173},{"$f":"SUM(C173:C188)","v":173}]
[null,"юный",{"$f":"Юный!A99","v":5}]
[null,"юный татарский",{"$f":"'Юный Татарский '!A101","v":1}]
[null,"Юный русский язык ",{"$f":"'Юный русский язык  '!A101","v":9}]
[null,"Юный Физика, математика'",{"$f":"'Юный Физика, математика'!A101","v":9}]
[null,"Юный История",{"$f":"'Юный История'!A101","v":20}]
[null,"Юный Окружающий мир",{"$f":"'Юный Окружающий мир'!A101","v":42}]
[null,"Татарский ",{"$f":"'Татарский '!A101","v":11}]
[null,"Математика",{"$f":"Математика!A101","v":14}]
[null,"Русский язык '",{"$f":"'Русский язык '!A101","v":7}]
[null,"Загадки английского",{"$f":"'Загадки английского'!A101","v":5}]
[null,"Созидательный труд",{"$f":"'Созидательный труд '!A101","v":3}]
[null,"Химия, биология, экология",{"$f":"'Химия, биология, экология'!A101","v":18}]
[null,"Физика",{"$f":"Физика!A101","v":4}]
[null,"География, экономика",{"$f":"'География, экономика'!A101","v":9}]
[null,"История",{"$f":"'История '!A101","v":16}]